bitfinex-derivatives/quotes_ETHF0:USTF0_20210702
["timestamp","ask_amount","ask_price","bid_price","bid_amount"]
[1625246363184,45.4154,2107.7,2106.2,14.4594]
[1625246363335,2.20527,2106.6,2106.5,2.20527]
[1625246365286,4.41054,2106.6,2106.5,2.20527]
[1625246365940,4.41054,2106.6,2106.3,2.20527]
[1625246368291,1.0,2107.2,2106.3,2.20527]
[1625246368392,1.0,2107.2,2106.8,53.0911]
[1625246368491,1.0,2107.2,2106.8,56.4109]
[1625246368943,1.0,2107.2,2106.8,3.3198]
[1625246369296,1.0,2107.2,2107.1,2.20527]
[1625246369599,2.20527,2107.3,2107.1,2.20527]
[1625246379559,2.20527,2107.3,2107.1,52.91587]
[1625246381673,2.20527,2107.6,2107.1,52.91587]
[1625246382081,1.0,2108.0,2107.1,52.91587]
[1625246382736,3.79733111,2108.0,2107.1,52.91587]
[1625246383382,2.20527,2107.5,2107.1,55.12114]
[1625246383634,3.20527,2107.7,2107.1,55.12114]
[1625246386588,2.20527,2107.7,2107.1,55.12114]
[1625246387392,2.20527,2107.7,2107.6,2.20527]
[1625246387493,2.20527,2107.7,2107.6,5.32527]
[1625246388544,3.20527,2107.7,2107.6,5.32527]
[1625246390449,3.20527,2107.7,2107.6,3.12]
[1625246390549,3.20527,2107.7,2107.1,2.20527]
[1625246391003,3.20527,2107.7,2107.1,61.14537]
[1625246391204,2.20527,2107.7,2107.1,61.14537]
[1625246391552,2.20527,2107.7,2107.6,4.41054]
[1625246393358,3.20527,2107.7,2107.6,4.41054]
[1625246395715,2.20527,2108.1,2107.6,6.86724]
[1625246395815,1.0,2108.0,2107.6,6.86724]
[1625246396466,1.0,2108.0,2107.6,4.66197]
[1625246396665,50.0407,2108.0,2107.6,4.66197]
[1625246396816,1.0,2108.0,2107.6,4.66197]
[1625246397682,55.5835,2107.8,2107.6,4.66197]
[1625246397785,56.5835,2107.8,2107.6,4.66197]
[1625246398338,1.0,2107.8,2107.6,4.66197]
[1625246398639,1.0,2107.8,2107.2,2.20527]
[1625246398889,1.0,2107.8,2106.8,2.78442113]
[1625246398991,1.0,2107.8,2106.8,1.35942113]
[1625246399541,4.41054,2106.9,2106.3,2.20527]
[1625246399645,1.0,2106.8,2106.3,2.20527]
[1625246399742,44.4879,2106.5,2106.3,2.20527]
[1625246399841,45.4879,2106.5,2106.3,2.20527]
[1625246400241,1.0,2106.5,2106.3,2.20527]
[1625246401495,2.20527,2106.4,2106.3,2.20527]
[1625246401597,1.0,2106.5,2106.3,2.20527]
[1625246401848,2.20527,2106.9,2106.3,2.20527]
[1625246402050,1.0,2106.8,2106.3,2.20527]
[1625246402761,2.20527,2106.9,2106.3,2.20527]
[1625246402850,2.20527,2106.9,2106.3,5.02017]
[1625246403505,2.20527,2106.9,2106.8,4.41054]
[1625246403604,2.20527,2106.9,2106.8,6.88114]
[1625246404056,2.20527,2106.9,2106.8,58.58874]
[1625246404557,2.20527,2107.2,2106.8,58.58874]
[1625246404661,1.95925447,2107.8,2106.8,58.58874]
[1625246405161,1.9561,2107.9,2106.8,60.53998253]
[1625246405308,1.0,2107.9,2106.8,60.53998253]
[1625246405508,1.0,2107.9,2107.8,4.41054]
[1625246405661,1.0,2107.9,2107.8,7.33754]
[1625246406411,1.9377,2107.9,2107.8,7.33754]
[1625246406915,1.0,2107.9,2107.8,7.33754]
[1625246409370,1.0,2107.9,2107.8,2.927]
[1625246409672,1.0,2107.9,2107.5,2.20527]
[1625246409922,1.0,2107.9,2107.5,58.51597]
[1625246410071,1.0,2107.9,2107.5,2.20527]
[1625246411283,2.95903156,2107.9,2107.5,2.20527]
[1625246412248,1.0,2107.9,2107.5,2.20527]
[1625246412601,55.2128,2107.6,2107.5,2.20527]
[1625246412703,56.2128,2107.6,2107.5,2.20527]
[1625246413503,1.0,2107.6,2107.5,2.20527]
[1625246413604,3.20527,2107.6,2107.5,2.20527]
[1625246416758,5.16460163,2107.6,2107.5,2.20527]
[1625246417209,3.20527,2107.6,2107.5,2.20527]
[1625246419315,5.16467847,2107.6,2107.5,2.20527]
[1625246419663,3.20527,2107.6,2107.5,2.20527]
[1625246424227,5.16496514,2107.6,2107.5,2.20527]
[1625246425491,5.16496514,2107.6,2106.6,14.8755]
[1625246425590,5.16496514,2107.6,2106.6,13.6165]
[1625246425691,2.20527,2107.2,2106.9,2.20527]
[1625246425842,5.54037,2107.2,2106.9,2.20527]
[1625246426093,6.48477,2107.2,2106.9,2.20527]
[1625246426291,6.48477,2107.2,2106.7,2.20527]
[1625246427097,6.48477,2107.2,2106.1,1.95091479]
[1625246427596,51.6791,2106.7,2106.1,1.95091479]
[1625246427697,2.20527,2106.5,2106.3,2.20527]
[1625246427845,1.0,2106.5,2106.3,2.20527]
[1625246428046,2.90415259,2107.2,2106.3,2.20527]
[1625246428145,1.0,2107.1,2106.3,4.96707]
[1625246428599,1.0,2107.1,2106.3,6.91846825]
[1625246428798,1.0,2107.1,2106.7,40.0739]
[1625246429700,1.0,2107.1,2107.0,4.41054]
[1625246429800,1.0,2107.1,2107.0,6.90014]
[1625246433454,58.4382,2107.1,2107.0,6.90014]
[1625246433554,1.0,2107.1,2107.0,6.90014]
[1625246437714,1.0,2107.1,2107.0,4.69487]
[1625246443177,2.20527,2107.2,2107.0,4.69487]
[1625246443681,4.47935409,2107.9,2107.0,4.69487]
[1625246443682,1.95969756,2107.6,2107.0,4.69487]
[1625246443781,1.95969756,2107.6,2107.1,2.20527]
[1625246444080,1.95968532,2107.7,2107.1,2.20527]
[1625246444289,2.95968532,2107.7,2107.1,2.20527]
[1625246445435,2.95968532,2107.7,2107.2,58.0818]
[1625246445732,2.95968532,2107.7,2107.5,2.20527]
[1625246446741,2.95968532,2107.7,2107.5,5.98337]
[1625246447132,2.95968532,2107.7,2107.5,3.7781]
[1625246448635,1.95968532,2107.7,2107.5,3.7781]
[1625246448885,1.95980938,2107.8,2107.5,3.7781]
[1625246448995,1.95980938,2107.8,2107.6,48.6982]
[1625246449295,4.16515096,2107.9,2107.6,48.6982]
[1625246449536,1.95988096,2107.9,2107.6,48.6982]
[1625246449635,1.95977636,2108.1,2107.6,48.6982]
[1625246449736,1.95977636,2108.1,2108.0,2.20527]
[1625246450285,2.95977636,2108.1,2108.0,2.20527]
[1625246450436,6.6002228,2108.1,2107.0,2.4896]
[1625246450537,51.694,2107.8,2106.7,15.8343]
[1625246450636,51.694,2107.8,2106.8,1.95031247]
[1625246450737,1.0,2107.9,2106.8,1.95031247]
[1625246451048,2.96031647,2107.9,2106.8,1.95031247]
[1625246451490,2.96031647,2107.9,2106.9,59.3749]
[1625246451738,2.20527,2107.7,2107.5,2.20527]
[1625246453552,2.96031647,2107.9,2107.5,2.20527]
[1625246453705,51.1035,2107.8,2107.5,2.20527]
[1625246453806,52.1035,2107.8,2107.5,2.20527]
[1625246453955,54.06396988,2107.8,2107.5,2.20527]
[1625246454257,2.96046988,2107.8,2107.5,2.20527]
[1625246454508,1.0,2107.8,2107.5,2.20527]
[1625246454808,1.96037152,2107.9,2107.5,2.20527]
[1625246454909,1.96037152,2107.9,2107.5,5.38477]
[1625246455261,1.96024053,2108.1,2107.8,46.2876]
[1625246455564,1.96024053,2108.1,2107.5,5.38477]
[1625246455765,1.96024053,2108.1,2108.0,4.41054]
[1625246455862,1.96024053,2108.1,2108.0,6.90144]
[1625246455964,2.96024053,2108.1,2108.0,6.90144]
[1625246456064,5.60054236,2108.1,2108.0,6.90144]
[1625246456415,1.96024053,2108.1,2108.0,6.90144]
[1625246456766,5.60066516,2108.1,2108.0,6.90144]
[1625246457018,1.96024053,2108.1,2108.0,6.90144]
[1625246457566,2.96024053,2108.1,2108.0,6.90144]
[1625246457768,4.64040329,2108.1,2108.0,6.90144]
[1625246458371,4.64040329,2108.1,2108.0,2.4909]
[1625246458470,3.64040329,2108.1,2108.0,2.4909]
[1625246458921,1.96012849,2108.1,2108.0,2.4909]
[1625246459776,1.96012849,2108.1,2108.0,6.90144]
[1625246460424,10.01084047,2108.2,2108.0,6.90144]
[1625246461076,6.37060184,2108.2,2108.0,6.90144]
[1625246462479,4.41054,2108.2,2108.0,6.90144]
[1625246462878,6.37039411,2108.2,2108.0,6.90144]
[1625246463783,1.95985411,2108.2,2108.0,6.90144]
[1625246463883,6.99940449,2108.3,2108.0,6.90144]
[1625246464186,3.35950483,2108.3,2108.0,6.90144]
[1625246464737,4.83e-06,2108.3,2108.0,6.90144]
[1625246464884,0.74335661,2108.4,2108.0,6.90144]
[1625246465287,4.4787381,2108.7,2108.0,6.90144]
[1625246465387,1.9318381,2108.7,2108.0,11.90144]
[1625246465739,4.47761662,2109.2,2108.0,11.90144]
[1625246465837,6.68288662,2109.2,2108.6,4.41054]
[1625246465938,6.68288662,2109.2,2108.6,7.11314]
[1625246466538,2.20527,2109.2,2108.6,7.11314]
[1625246466638,2.20527,2109.2,2108.8,43.6261]
[1625246466837,2.20527,2109.2,2108.6,7.11314]
[1625246467239,2.20527,2109.2,2108.8,53.0486]
[1625246467543,2.20527,2109.4,2108.8,53.0486]
[1625246467792,2.20527,2109.4,2109.3,4.41054]
[1625246467891,2.20527,2109.4,2109.3,7.10334]
[1625246468141,5.59126896,2110.0,2109.3,7.10334]
[1625246468343,5.59076098,2110.1,2109.3,7.10334]
[1625246469092,1.1,2110.2,2109.3,7.10334]
[1625246469093,6.68647743,2110.2,2109.3,7.10334]
[1625246469343,5.58647743,2110.2,2109.3,7.10334]
[1625246469443,5.58647743,2110.2,2109.4,41.3316]
[1625246469794,5.58647743,2110.2,2109.3,7.10334]
[1625246469894,5.58647743,2110.2,2110.1,3.01235034]
[1625246470097,2.20527,2110.3,2110.1,3.01235034]
[1625246471809,2.20527,2110.2,2110.1,3.01235034]
[1625246472762,2.20527,2110.2,2110.1,0.36325034]
[1625246475523,2.20527,2110.2,2109.3,1.0]
[1625246475626,2.20527,2110.2,2108.9,30.9056]
[1625246475723,2.20527,2110.2,2108.9,29.9056]
[1625246475824,2.20527,2110.2,2109.7,2.20527]
[1625246477027,56.6595,2110.0,2109.7,2.20527]
[1625246477731,56.6595,2110.0,2109.5,2.20527]
[1625246477879,2.20527,2109.6,2109.5,2.20527]
[1625246478629,56.6595,2110.0,2109.5,2.20527]
[1625246479834,2.20527,2109.8,2109.5,2.20527]
[1625246480787,59.6367,2109.6,2109.5,2.20527]
[1625246480885,62.1951,2109.6,2109.5,2.20527]
[1625246481737,62.1951,2109.6,2108.9,29.9056]
[1625246481839,2.20527,2109.3,2108.9,29.9056]
[1625246482038,2.20527,2109.3,2108.9,14.6452]
[1625246482348,2.20527,2109.3,2108.9,14.5229]
[1625246482447,2.20527,2109.3,2108.8,2.20527]
[1625246483974,4.72257,2109.3,2108.8,2.20527]
[1625246485624,41.8768,2108.9,2108.8,2.20527]
[1625246485874,44.08207,2108.9,2108.8,2.20527]
[1625246489136,2.20527,2108.9,2108.8,2.20527]
[1625246494601,2.20527,2108.9,2108.8,0.78827]
[1625246497722,59.23927,2108.9,2108.8,0.78827]
[1625246503591,2.20527,2108.9,2108.8,0.78827]
[1625246506047,55.23717,2108.9,2108.8,0.78827]
[1625246511309,55.23717,2108.9,2108.6,2.20527]
[1625246511407,55.23717,2108.9,2107.7,1.0]
[1625246511558,55.23717,2108.9,2107.6,15.5555]
[1625246511909,1.1,2108.8,2107.6,15.5555]
[1625246512109,2.20527,2107.8,2107.7,2.20527]
[1625246513174,60.17587,2107.8,2107.7,2.20527]
[1625246513574,2.20527,2107.8,2107.7,2.20527]
[1625246516031,48.95897,2107.8,2107.7,2.20527]
[1625246516732,2.20527,2107.8,2107.7,2.20527]
[1625246517486,51.68837,2107.8,2107.7,2.20527]
[1625246517733,2.20527,2107.8,2107.7,2.20527]
[1625246520693,2.20527,2107.8,2107.7,55.62827]
[1625246521040,2.20527,2107.8,2107.7,2.20527]
[1625246526914,51.28467,2107.8,2107.7,2.20527]
[1625246527111,2.20527,2107.8,2107.7,2.20527]
[1625246527665,46.02797,2107.8,2107.7,2.20527]
[1625246527815,2.20527,2107.8,2107.7,2.20527]
[1625246529784,50.3234,2108.4,2107.7,2.20527]
[1625246530139,2.20527,2108.0,2107.7,2.20527]
[1625246531184,4.94457,2108.0,2107.7,2.20527]
[1625246531287,56.8723,2107.8,2107.7,2.20527]
[1625246532236,59.07757,2107.8,2107.7,2.20527]
[1625246539501,2.20527,2107.8,2107.7,5.80747]
[1625246541805,60.49927,2107.8,2107.7,5.80747]
[1625246542057,2.20527,2107.8,2107.7,5.80747]
[1625246544034,2.20527,2107.8,2107.7,3.6022]
[1625246544233,2.20527,2107.8,2106.9,3.20527]
[1625246544333,2.20527,2107.8,2106.9,2.20527]
[1625246544739,47.174,2107.3,2106.9,2.20527]
[1625246544992,2.20527,2107.8,2106.9,2.20527]
[1625246545188,3.14007,2107.8,2106.9,2.20527]
[1625246546239,2.20527,2107.3,2106.9,2.20527]
[1625246548297,2.20527,2107.3,2107.2,2.20527]
[1625246548446,2.20527,2107.3,2107.2,5.17267]
[1625246548698,2.20527,2107.3,2107.2,59.12167]
[1625246549148,1.0,2108.2,2107.2,59.12167]
[1625246549251,2.79076422,2108.5,2107.2,59.12167]
[1625246549348,2.79076422,2108.5,2107.2,5.17267]
[1625246549752,2.7905655,2108.6,2107.2,5.17267]
[1625246550052,57.86569072,2108.7,2107.2,5.17267]
[1625246550254,2.20527,2108.0,2107.8,2.20527]
[1625246550357,2.20527,2108.0,2107.8,5.92887]
[1625246550806,4.759,2108.7,2107.8,5.92887]
[1625246551007,2.79051313,2108.8,2107.8,5.92887]
[1625246551159,2.79051313,2108.8,2108.2,48.6328]
[1625246551409,17.59801572,2108.9,2108.2,48.6328]
[1625246551862,2.79061572,2108.9,2108.2,48.6328]
[1625246552262,2.20527,2108.7,2108.6,2.20527]
[1625246552363,2.20527,2108.7,2108.6,4.68727]
[1625246554416,2.79022779,2109.1,2108.6,4.68727]
[1625246554619,2.79027556,2109.2,2108.6,4.68727]
[1625246554918,2.78970698,2109.6,2108.6,4.68727]
[1625246555470,2.78970698,2109.6,2109.0,41.913]
[1625246555718,5.57941395,2110.2,2109.0,41.913]
[1625246555719,2.78949562,2109.7,2109.0,41.913]
[1625246556074,2.78937148,2109.8,2109.0,41.913]
[1625246556323,2.20527,2109.5,2109.4,2.20527]
[1625246556421,2.20527,2109.5,2109.4,5.52867]
[1625246558286,4.41054,2109.5,2109.4,5.52867]
[1625246560792,4.41054,2109.5,2109.4,2.20527]
[1625246561241,63.74744,2109.5,2108.6,1.0]
[1625246561341,66.67964,2109.5,2108.3,29.2704]
[1625246561442,69.46954134,2109.5,2108.3,29.2704]
[1625246562395,2.20527,2109.1,2108.8,2.20527]
[1625246566255,2.20527,2109.5,2108.8,2.20527]
[1625246566403,2.20527,2109.5,2109.4,7.34904]
[1625246571512,2.20527,2109.5,2109.4,5.14377]
[1625246571615,2.20527,2109.5,2108.6,1.0]
[1625246571761,2.20527,2109.5,2108.3,29.2704]
[1625246572162,56.0026,2109.1,2108.3,29.2704]
[1625246572314,59.3613,2109.1,2108.3,14.5436]
[1625246572464,59.3613,2109.1,2107.8,43.47722969]
[1625246572465,2.20527,2108.9,2108.2,2.20527]
[1625246574067,2.20527,2108.9,2107.7,1.0]
[1625246574171,2.20527,2108.9,2107.4,2.9438]
[1625246574367,2.20527,2108.9,2107.8,41.7181]
[1625246574518,2.20527,2108.4,2107.8,43.92337]
[1625246575171,2.20527,2108.9,2107.8,43.92337]
[1625246576124,2.20527,2108.9,2107.8,48.92337]
[1625246576272,2.79091749,2109.5,2107.8,48.92337]
[1625246576374,2.79091749,2109.5,2107.8,49.92337]
[1625246576473,2.79091749,2109.5,2109.4,2.20527]
[1625246576626,4.99604092,2109.6,2109.4,5.78087]
[1625246576924,4.99604092,2109.6,2109.5,51.1971]
[1625246577026,2.20527,2109.6,2109.4,5.78087]
[1625246592964,52.8421,2109.5,2109.4,5.78087]
[1625246593112,2.20527,2109.6,2109.4,5.78087]
[1625246602246,2.20527,2109.6,2109.4,3.5756]
[1625246602347,2.20527,2109.6,2107.8,41.7181]
[1625246602447,5.53257,2109.6,2108.2,15.6146]
[1625246602647,5.80527,2109.0,2108.7,2.20527]
[1625246603605,41.0313,2108.9,2108.7,2.20527]
[1625246604056,5.80527,2109.0,2108.7,2.20527]
[1625246604609,2.20527,2108.9,2108.7,2.20527]
[1625246606210,59.87015864,2109.8,2108.7,2.20527]
[1625246606311,57.0841,2109.8,2108.7,2.20527]
[1625246606664,2.20527,2109.5,2109.4,2.20527]
[1625246607164,50.63147,2109.5,2109.4,2.20527]
[1625246608620,52.83674,2109.5,2109.4,2.20527]
[1625246609167,4.41054,2109.5,2109.4,2.20527]
[1625246624224,54.16544,2109.5,2109.4,2.20527]
[1625246626178,4.41054,2109.5,2109.4,2.20527]
[1625246626828,44.84994,2109.5,2109.4,2.20527]
[1625246628633,44.84994,2109.5,2109.4,5.88167]
[1625246628734,4.41054,2109.5,2109.4,5.88167]
[1625246628934,2.78815717,2110.0,2109.4,5.88167]
[1625246629137,2.788165,2110.1,2109.4,5.88167]
[1625246629489,2.7886654,2110.4,2109.4,5.88167]
[1625246630286,2.78852979,2110.5,2109.4,5.88167]
[1625246630844,2.78852979,2110.5,2110.4,5.78407]
[1625246632695,4.99374384,2110.6,2110.4,5.78407]
[1625246632844,7.19901384,2110.6,2110.4,5.78407]
[1625246633358,2.7892186,2110.5,2110.4,5.78407]
[1625246634506,7.19940314,2110.6,2110.4,5.78407]
[1625246635364,56.42480314,2110.6,2110.4,5.78407]
[1625246635616,2.79066956,2110.5,2110.4,5.78407]
[1625246637470,4.41054,2110.6,2110.4,5.78407]
[1625246637471,8.04086575,2110.6,2110.4,5.78407]
[1625246638671,7.20281836,2110.6,2110.4,5.78407]
[1625246639071,4.41054,2110.6,2110.4,5.78407]
[1625246639572,7.20353018,2110.6,2110.4,5.78407]
[1625246641526,2.79335343,2110.5,2110.4,5.78407]
[1625246641673,2.79335343,2110.5,2110.4,3.5788]
[1625246641774,2.79335343,2110.5,2110.2,2.20527]
[1625246641924,8.04210352,2110.6,2110.2,2.20527]
[1625246642174,2.79353739,2110.3,2110.2,2.20527]
[1625246642475,2.79353739,2110.3,2109.4,4.6764]
[1625246642626,2.79353739,2110.3,2109.1,14.941]
[1625246642876,2.79369072,2110.2,2109.7,2.20527]
[1625246642974,2.20527,2109.9,2109.7,2.20527]
[1625246643075,47.66657,2109.9,2109.7,2.20527]
[1625246643628,2.20527,2109.9,2109.7,2.20527]
[1625246644031,2.20527,2109.9,2109.7,53.92137]
[1625246644130,2.20527,2109.9,2109.7,2.20527]
[1625246645029,4.41054,2109.9,2109.7,2.20527]
[1625246646084,4.41054,2109.9,2109.7,59.32287]
[1625246646183,4.41054,2109.9,2109.7,2.20527]
[1625246648238,4.41054,2109.9,2109.7,53.42237]
[1625246648340,4.41054,2109.9,2109.7,4.77127]
[1625246649955,4.41054,2109.9,2109.7,51.12667]
[1625246650055,4.41054,2109.9,2109.7,4.77127]
[1625246650615,63.84984,2109.9,2109.7,4.77127]
[1625246650817,63.84984,2109.9,2109.7,2.20527]
[1625246651169,65.80556954,2109.9,2109.7,2.20527]
[1625246651516,65.80556954,2109.9,2109.1,14.941]
[1625246651669,1.95589158,2109.8,2109.1,14.941]
[1625246651772,1.95589158,2109.8,2108.8,15.0362]
[1625246652119,66.64397082,2109.9,2108.8,15.0362]
[1625246652120,1.95616288,2109.6,2108.8,15.0362]
[1625246652471,1.95616288,2109.6,2108.3,1.95611387]
[1625246653023,2.20527,2109.0,2108.9,2.20527]
[1625246654021,1.95420118,2109.5,2108.9,2.20527]
[1625246655075,2.20527,2109.0,2108.9,2.20527]
[1625246657073,4.15897119,2109.4,2108.9,5.32597]
[1625246657176,2.20527,2109.4,2108.9,5.32597]
[1625246658984,2.20527,2109.4,2108.9,7.53124]
[1625246660986,2.20527,2109.1,2108.9,7.53124]
[1625246663342,2.20527,2109.4,2108.9,7.53124]
[1625246663441,2.20527,2109.4,2109.0,56.979]
[1625246663894,2.20527,2109.4,2108.9,7.53124]
[1625246664498,2.20527,2109.4,2109.2,59.6139]
[1625246664595,2.20527,2109.4,2108.9,7.53124]
[1625246665208,2.20527,2109.4,2109.3,2.20527]
[1625246667322,4.74663149,2109.5,2109.3,2.20527]
[1625246667626,1.95468191,2109.5,2109.3,2.20527]
[1625246668075,2.7919,2109.6,2109.3,2.20527]
[1625246668076,1.95465969,2109.6,2109.3,2.20527]
[1625246668377,4.74844641,2109.8,2109.3,2.20527]
[1625246668777,1.95524264,2109.8,2109.3,2.20527]
[1625246669127,4.74858466,2109.8,2109.3,2.20527]
[1625246669227,4.74858466,2109.8,2109.7,2.20527]
[1625246669327,4.74858466,2109.8,2109.7,4.92297]
[1625246669478,5.8359408,2109.9,2109.7,4.92297]
[1625246670080,4.74861391,2109.8,2109.7,4.92297]
[1625246671235,6.95388391,2109.8,2109.7,4.92297]
[1625246672340,4.9985723,2109.8,2109.7,4.92297]
[1625246672939,6.95412425,2109.8,2109.7,4.92297]
[1625246675395,4.74885425,2109.8,2109.7,4.92297]
[1625246676046,4.74885425,2109.8,2109.7,49.55757]
[1625246676147,4.75249528,2109.9,2109.7,49.55757]
[1625246676699,4.75249528,2109.9,2109.7,4.92297]
[1625246676902,1.95690982,2109.9,2109.7,4.92297]
[1625246677300,1.95690982,2109.9,2109.8,52.6747]
[1625246677301,2.20527,2109.9,2109.8,52.6747]
[1625246677651,6.95867041,2109.9,2109.8,52.6747]
[1625246677901,2.20527,2109.9,2109.8,52.6747]
[1625246678711,4.16124113,2109.9,2109.8,52.6747]
[1625246679362,4.16124113,2109.9,2109.7,7.12824]
[1625246679512,2.20527,2109.9,2109.7,7.12824]
[1625246680323,4.15887456,2109.9,2109.7,7.12824]
[1625246680574,2.20527,2109.9,2109.7,7.12824]
[1625246681680,6.94763403,2109.9,2109.7,7.12824]
[1625246683033,6.94763403,2109.9,2109.8,42.7459]
[1625246683134,6.94763403,2109.9,2109.7,7.12824]
[1625246684587,4.15800813,2109.9,2109.7,7.12824]
[1625246684889,2.20527,2109.9,2109.7,7.12824]
[1625246685439,2.20527,2109.9,2109.8,40.1699]
[1625246685539,2.20527,2109.9,2109.7,7.12824]
[1625246687444,44.07477,2109.9,2109.7,7.12824]
[1625246687544,1.95251425,2109.8,2109.7,7.12824]
[1625246688296,4.99457607,2109.9,2109.7,7.12824]
[1625246688297,6.94691389,2109.9,2109.7,7.12824]
[1625246689852,4.15760782,2109.9,2109.7,7.12824]
[1625246690150,6.94686825,2109.9,2109.7,7.12824]
[1625246691105,6.94686825,2109.9,2109.7,64.48464]
[1625246691205,6.94686825,2109.9,2109.7,7.12824]
[1625246691504,2.20527,2109.9,2109.7,7.12824]
[1625246691807,4.15794479,2109.9,2109.7,7.12824]
[1625246692540,2.20527,2109.9,2109.7,7.12824]
[1625246694180,6.95132572,2109.9,2109.7,7.12824]
[1625246698092,9.52512572,2109.9,2109.7,4.41054]
[1625246698195,4.74521695,2109.8,2108.9,1.0]
[1625246698296,4.74521695,2109.8,2108.7,1.95790956]
[1625246698546,4.77907,2109.9,2108.4,16.3517]
[1625246698697,4.77907,2109.9,2108.4,15.3517]
[1625246698998,4.74210522,2109.5,2108.4,17.30994523]
[1625246699298,4.74210522,2109.5,2108.5,69.8016]
[1625246699447,2.20527,2109.0,2108.9,2.20527]
[1625246700500,4.74210522,2109.5,2108.9,2.20527]
[1625246700600,4.74210522,2109.5,2108.9,5.61677]
[1625246700850,3.62631575,2109.7,2108.9,5.61677]
[1625246700851,4.74071541,2109.7,2108.9,5.61677]
[1625246701151,4.74071541,2109.7,2109.2,45.3815]
[1625246701451,4.74071541,2109.7,2109.6,4.41054]
[1625246701551,4.74071541,2109.7,2109.6,7.90844]
[1625246701702,4.46184979,2110.1,2109.6,7.90844]
[1625246701703,4.74177777,2109.8,2109.6,66.13524]
[1625246702053,7.78383208,2110.4,2109.6,66.13524]
[1625246702054,6.95191502,2110.4,2109.6,66.13524]
[1625246702855,2.79210567,2110.3,2109.6,66.13524]
[1625246702955,4.46736908,2110.7,2109.6,71.13524]
[1625246703055,4.46736908,2110.7,2110.4,40.7547]
[1625246703157,4.46736908,2110.7,2110.5,5.0]
[1625246703259,4.46736908,2110.7,2110.5,3.7597]
[1625246703457,4.46736908,2110.7,2110.6,4.41054]
[1625246703757,11.16725359,2111.8,2110.6,4.41054]
[1625246703758,4.47315039,2111.5,2110.6,4.41054]
[1625246704412,4.46902284,2111.9,2110.7,5.0]
[1625246704924,4.46902284,2111.9,2110.6,4.41054]
[1625246705271,2.20527,2112.0,2110.6,4.41054]
[1625246705272,6.67409856,2112.0,2110.6,4.41054]
[1625246705391,1.40225662,2111.8,2110.6,4.41054]
[1625246705473,2.20527,2111.4,2110.9,2.20527]
[1625246705875,1.39608009,2111.2,2110.9,2.20527]
[1625246706729,6.66839917,2111.4,2110.9,2.20527]
[1625246707079,2.20527,2111.4,2110.9,2.20527]
[1625246707485,4.41054,2111.4,2111.3,1.36377693]
[1625246707584,4.41054,2111.4,2111.3,4.12687693]
[1625246707690,2.20527,2111.4,2111.3,4.12687693]
[1625246708690,2.20527,2111.4,2111.3,55.09087693]
[1625246709246,4.46571901,2111.8,2111.3,55.09087693]
[1625246709345,4.46505987,2111.9,2111.3,55.09087693]
[1625246709547,4.46505987,2111.9,2111.8,2.20527]
[1625246709646,6.67007535,2112.0,2111.8,5.99967]
[1625246710046,2.20527,2112.0,2111.8,5.99967]
[1625246711252,2.20527,2112.2,2111.8,5.99967]
[1625246711652,2.20527,2112.2,2112.1,2.20527]
[1625246712856,2.20527,2112.2,2112.1,59.79767]
[1625246713056,2.20527,2112.2,2112.1,2.20527]
[1625246714763,3.59724745,2112.2,2112.1,2.20527]
[1625246715878,2.20527,2112.2,2112.1,2.20527]
[1625246716680,3.59644296,2112.2,2111.8,2.20527]
[1625246716780,3.59644296,2112.2,2110.2,4.82604342]
[1625246716879,3.59644296,2112.2,2110.5,1.0]
[1625246716983,1.39135044,2111.9,2110.2,8.4379]
[1625246717180,1.39135044,2111.9,2109.9,1.38939074]
[1625246717281,1.0,2111.8,2109.9,1.38939074]
[1625246717383,2.3914103,2111.8,2111.1,45.7632]
[1625246717482,1.3914103,2111.8,2111.1,45.7632]
[1625246717581,2.20527,2111.5,2111.4,2.20527]
[1625246718233,53.90147,2111.5,2111.4,2.20527]
[1625246718535,2.20527,2111.5,2111.4,2.20527]
[1625246719738,44.93337,2111.5,2111.4,2.20527]
[1625246720188,2.20527,2111.5,2111.4,2.20527]
[1625246721037,48.20717,2111.5,2111.4,2.20527]
[1625246721941,2.20527,2111.5,2111.4,2.20527]
[1625246722142,2.20527,2111.5,2111.2,2.20527]
[1625246723658,2.20527,2111.4,2111.2,2.20527]
[1625246724852,43.46887,2111.4,2111.2,2.20527]
[1625246724953,2.20527,2111.4,2111.2,2.20527]
[1625246727759,2.20527,2111.5,2111.2,2.20527]
[1625246728360,55.44,2111.3,2111.2,2.20527]
[1625246728510,2.20527,2111.5,2110.9,2.4059]
[1625246729662,2.20527,2111.5,2110.8,2.20527]
[1625246729764,2.20527,2110.9,2110.8,4.41054]
[1625246730664,47.76327,2110.9,2110.8,4.41054]
[1625246731220,2.20527,2110.9,2110.8,4.41054]
[1625246731827,4.41054,2110.9,2110.8,4.41054]
[1625246732118,4.41054,2110.9,2110.0,1.0]
[1625246732219,4.41054,2110.9,2109.7,13.1301]
[1625246732424,4.41054,2110.9,2109.0,78.1307]
[1625246732571,5.41054,2110.9,2109.0,78.1307]
[1625246733123,5.41054,2110.9,2109.0,83.1307]
[1625246733222,5.41054,2110.9,2109.1,4.6788]
[1625246733373,5.41054,2110.9,2109.9,2.6725]
[1625246733472,4.41054,2110.9,2109.9,2.6725]
[1625246733875,2.20527,2110.4,2110.3,2.20527]
[1625246735529,2.20527,2110.4,2110.1,2.20527]
[1625246735779,4.41054,2110.4,2110.0,2.20527]
[1625246737396,4.41054,2110.4,2109.8,2.20527]
[1625246737846,2.20527,2109.9,2109.8,2.20527]
[1625246739857,4.41054,2109.9,2109.8,2.20527]
[1625246740057,46.72184,2109.9,2109.8,2.20527]